[Event "*** Titled Tuesday Blitz"]
[Site "Chess.com"]
[Date "2020.04.28"]
[Round "9"]
[White "Yerlan-Ra"]
[Black "Pavalamalli"]
[Result "1-0"]
[WhiteElo "2407"]
[BlackElo "2254"]
[TimeControl "180+1"]
[EndTime "11:46:15 PDT"]
[Termination "Yerlan-Ra won by checkmate"]

1. e4 {[%clk 0:03:00.9]} 1... c5 {[%clk 0:02:59.5]} 2. Nf3 {[%clk 0:03:00.4]}
2... e6 {[%clk 0:02:59.8]} 3. d4 {[%clk 0:03:01.3]} 3... cxd4 {[%clk 0:03:00.1]}
4. Nxd4 {[%clk 0:03:01.9]} 4... a6 {[%clk 0:03:00.4]} 5. c4 {[%clk 0:03:01.5]}
5... Qc7 {[%clk 0:02:59.9]} 6. Nc3 {[%clk 0:03:00.8]} 6... Nf6 {[%clk
0:03:00.2]} 7. Be2 {[%clk 0:02:55.2]} 7... b6 {[%clk 0:02:56.5]} 8. O-O {[%clk
0:02:54.8]} 8... Bb7 {[%clk 0:02:56.1]} 9. f3 {[%clk 0:02:53.6]} 9... d6 {[%clk
0:02:55.6]} 10. Be3 {[%clk 0:02:51.1]} 10... Nbd7 {[%clk 0:02:55.8]} 11. Rc1
{[%clk 0:02:50.2]} 11... Be7 {[%clk 0:02:56]} 12. Qe1 {[%clk 0:02:48.5]} 12...
O-O {[%clk 0:02:56.1]} 13. Qf2 {[%clk 0:02:47]} 13... Rac8 {[%clk 0:02:55.9]}
14. Rfd1 {[%clk 0:02:46.2]} 14... Qb8 {[%clk 0:02:54.8]} 15. g4 {[%clk
0:02:45.3]} 15... h6 {[%clk 0:02:24.6]} 16. h4 {[%clk 0:02:39.1]} 16... Nh7
{[%clk 0:02:06.6]} 17. b3 {[%clk 0:02:06.4]} 17... Rfe8 {[%clk 0:02:04.6]} 18.
Bf1 {[%clk 0:02:05.8]} 18... d5 {[%clk 0:01:51]} 19. exd5 {[%clk 0:01:54.3]}
19... exd5 {[%clk 0:01:49.9]} 20. Nxd5 {[%clk 0:01:50.4]} 20... Bxd5 {[%clk
0:01:48.9]} 21. cxd5 {[%clk 0:01:51.3]} 21... Rxc1 {[%clk 0:01:48.1]} 22. Rxc1
{[%clk 0:01:50.7]} 22... Bxh4 {[%clk 0:01:47.3]} 23. Qxh4 {[%clk 0:01:43.6]}
23... Rxe3 {[%clk 0:01:46.6]} 24. Nf5 {[%clk 0:01:22.9]} 24... Re8 {[%clk
0:01:41.1]} 25. d6 {[%clk 0:01:13.2]} 25... Ng5 {[%clk 0:01:33.6]} 26. Qg3
{[%clk 0:01:10]} 26... Nc5 {[%clk 0:01:19.2]} 27. Bc4 {[%clk 0:00:59]} 27... Qb7
{[%clk 0:01:13.8]} 28. Kg2 {[%clk 0:00:44.9]} 28... Nce4 {[%clk 0:00:42.2]} 29.
Qf4 {[%clk 0:00:34.2]} 29... Nf6 {[%clk 0:00:20.6]} 30. Nxh6+ {[%clk 0:00:34.1]}
30... gxh6 {[%clk 0:00:20]} 31. Qxf6 {[%clk 0:00:34.1]} 31... b5 {[%clk
0:00:16.6]} 32. Qg6+ {[%clk 0:00:31.6]} 32... Kh8 {[%clk 0:00:14.5]} 33. Qxh6+
{[%clk 0:00:32.5]} 33... Nh7 {[%clk 0:00:14.3]} 34. Bd3 {[%clk 0:00:25.7]} 34...
f5 {[%clk 0:00:14]} 35. Rc7 {[%clk 0:00:21.8]} 35... fxg4 {[%clk 0:00:09]} 36.
Qxh7# {[%clk 0:00:21.4]} 1-0

[Event "*** Titled Tuesday Blitz"]
[Site "Chess.com"]
[Date "2020.04.28"]
[Round "9"]
[White "fabianvivasz"]
[Black "Richarzard69"]
[Result "0-1"]
[WhiteElo "2362"]
[BlackElo "2255"]
[TimeControl "180+1"]
[EndTime "11:46:15 PDT"]
[Termination "Richarzard69 won on time"]

1. e4 {[%clk 0:03:00.9]} 1... e6 {[%clk 0:03:00]} 2. d4 {[%clk 0:03:01]} 2... d5
{[%clk 0:02:59.9]} 3. Nd2 {[%clk 0:03:01.6]} 3... Nf6 {[%clk 0:02:59.3]} 4. e5
{[%clk 0:03:00.2]} 4... Nfd7 {[%clk 0:02:59.4]} 5. Ngf3 {[%clk 0:03:00.7]} 5...
c5 {[%clk 0:02:58.6]} 6. c3 {[%clk 0:03:01.2]} 6... Nc6 {[%clk 0:02:57.7]} 7.
Bd3 {[%clk 0:03:01.3]} 7... cxd4 {[%clk 0:02:56.1]} 8. cxd4 {[%clk 0:03:02.2]}
8... f6 {[%clk 0:02:55.8]} 9. exf6 {[%clk 0:03:02]} 9... Nxf6 {[%clk 0:02:55.5]}
10. O-O {[%clk 0:03:00.9]} 10... Bd6 {[%clk 0:02:55.3]} 11. b3 {[%clk
0:02:56.2]} 11... O-O {[%clk 0:02:50.6]} 12. Bb2 {[%clk 0:02:56.1]} 12... Qc7
{[%clk 0:02:24.4]} 13. Rc1 {[%clk 0:02:49]} 13... Ng4 {[%clk 0:02:23.8]} 14.
Bxh7+ {[%clk 0:02:36.5]} 14... Kh8 {[%clk 0:02:11.2]} 15. Bb1 {[%clk 0:01:58.9]}
15... Bxh2+ {[%clk 0:01:54.1]} 16. Kh1 {[%clk 0:01:58.7]} 16... Rf6 {[%clk
0:01:43]} 17. Nh4 {[%clk 0:01:09.2]} 17... e5 {[%clk 0:00:51.8]} 18. Ng6+ {[%clk
0:00:36.8]} 18... Kg8 {[%clk 0:00:47.4]} 19. dxe5 {[%clk 0:00:34]} 19... Rxf2
{[%clk 0:00:26.8]} 20. Qxg4 {[%clk 0:00:19.2]} 20... Rxf1+ {[%clk 0:00:21.3]}
21. Rxf1 {[%clk 0:00:17.5]} 21... Bxg4 {[%clk 0:00:22.2]} 22. Kxh2 {[%clk
0:00:16.3]} 22... Re8 {[%clk 0:00:16.8]} 23. Kg3 {[%clk 0:00:14]} 23... Bh5
{[%clk 0:00:15.8]} 24. Nf4 {[%clk 0:00:13]} 24... Bf7 {[%clk 0:00:14.4]} 25. e6
{[%clk 0:00:12.1]} 25... Bxe6 {[%clk 0:00:12.8]} 26. Bg6 {[%clk 0:00:12.4]}
26... Bf7 {[%clk 0:00:11.5]} 27. Bf5 {[%clk 0:00:11.2]} 27... Re3+ {[%clk
0:00:10]} 28. Nf3 {[%clk 0:00:11.4]} 28... Qe7 {[%clk 0:00:07.4]} 29. Rh1 {[%clk
0:00:10.6]} 29... d4 {[%clk 0:00:06.6]} 30. Kg4 {[%clk 0:00:07.2]} 30... g6
{[%clk 0:00:06.4]} 31. Bxg6 {[%clk 0:00:03.6]} 31... Bxg6 {[%clk 0:00:07.3]} 32.
Nxg6 {[%clk 0:00:03.8]} 32... Qe4+ {[%clk 0:00:07.8]} 33. Nf4 {[%clk 0:00:04.1]}
33... Ne5+ {[%clk 0:00:07.4]} 34. Kg3 {[%clk 0:00:04]} 34... Nxf3 {[%clk
0:00:08]} 0-1

[Event "*** Titled Tuesday Blitz"]
[Site "Chess.com"]
[Date "2020.04.28"]
[Round "9"]
[White "goofypenguin96"]
[Black "Blitzking642"]
[Result "1-0"]
[WhiteElo "2187"]
[BlackElo "2293"]
[TimeControl "180+1"]
[EndTime "11:46:18 PDT"]
[Termination "goofypenguin96 won on time"]

1. h4 {[%clk 0:03:00.2]} 1... e5 {[%clk 0:02:54.6]} 2. h5 {[%clk 0:02:58.7]}
2... d5 {[%clk 0:02:51.3]} 3. c3 {[%clk 0:02:57.6]} 3... c5 {[%clk 0:02:49.2]}
4. d4 {[%clk 0:02:56]} 4... cxd4 {[%clk 0:02:47.4]} 5. cxd4 {[%clk 0:02:56.9]}
5... e4 {[%clk 0:02:45]} 6. Bf4 {[%clk 0:02:57]} 6... Nc6 {[%clk 0:02:45.1]} 7.
Nc3 {[%clk 0:02:56.5]} 7... h6 {[%clk 0:02:36.3]} 8. e3 {[%clk 0:02:52.9]} 8...
Nf6 {[%clk 0:02:36.4]} 9. Nh3 {[%clk 0:02:43.8]} 9... Bd6 {[%clk 0:02:34.9]} 10.
Qb3 {[%clk 0:02:41.5]} 10... O-O {[%clk 0:02:26.7]} 11. Rc1 {[%clk 0:02:25.5]}
11... Bxh3 {[%clk 0:02:09.4]} 12. Bxd6 {[%clk 0:02:03.6]} 12... Bxg2 {[%clk
0:02:04.8]} 13. Bxg2 {[%clk 0:01:52.9]} 13... Qxd6 {[%clk 0:02:03.7]} 14. Qxb7
{[%clk 0:01:53.1]} 14... Rab8 {[%clk 0:01:57.9]} 15. Qa6 {[%clk 0:01:52.4]}
15... Rxb2 {[%clk 0:01:48.8]} 16. a3 {[%clk 0:01:38.6]} 16... Ng4 {[%clk
0:01:28.1]} 17. Nxe4 {[%clk 0:01:26.6]} 17... dxe4 {[%clk 0:01:23.9]} 18. Qxc6
{[%clk 0:01:26.2]} 18... Qxa3 {[%clk 0:01:20.3]} 19. O-O {[%clk 0:01:25.1]}
19... Nxe3 {[%clk 0:00:45.1]} 20. fxe3 {[%clk 0:01:13.7]} 20... Qxe3+ {[%clk
0:00:44.8]} 21. Kh1 {[%clk 0:01:13.6]} 21... Qxd4 {[%clk 0:00:35.1]} 22. Qxe4
{[%clk 0:01:11.6]} 22... Qd2 {[%clk 0:00:34.8]} 23. Qd5 {[%clk 0:01:06.7]} 23...
a5 {[%clk 0:00:27.8]} 24. Rcd1 {[%clk 0:01:04.1]} 24... Qe2 {[%clk 0:00:27.4]}
25. Rde1 {[%clk 0:01:03.1]} 25... Qg4 {[%clk 0:00:26.2]} 26. Kg1 {[%clk
0:00:42.1]} 26... a4 {[%clk 0:00:24.8]} 27. Qe4 {[%clk 0:00:35.8]} 27... Qg5
{[%clk 0:00:18.8]} 28. Rf5 {[%clk 0:00:32]} 28... Qg3 {[%clk 0:00:18.4]} 29.
Ref1 {[%clk 0:00:30.3]} 29... a3 {[%clk 0:00:13.1]} 30. Qf3 {[%clk 0:00:22]}
30... Qc7 {[%clk 0:00:08.9]} 31. Qxa3 {[%clk 0:00:18.3]} 31... Qc2 {[%clk
0:00:06.8]} 32. Qf3 {[%clk 0:00:13.4]} 1-0

[Event "*** Titled Tuesday Blitz"]
[Site "Chess.com"]
[Date "2020.04.28"]
[Round "9"]
[White "KubaGepard"]
[Black "mariofs"]
[Result "0-1"]
[WhiteElo "2344"]
[BlackElo "2230"]
[TimeControl "180+1"]
[EndTime "11:46:19 PDT"]
[Termination "mariofs won on time"]

1. d4 {[%clk 0:03:00.9]} 1... d5 {[%clk 0:03:00]} 2. Nf3 {[%clk 0:02:59.4]} 2...
Nf6 {[%clk 0:02:59.7]} 3. Bf4 {[%clk 0:02:58.2]} 3... c5 {[%clk 0:02:59.8]} 4.
e3 {[%clk 0:02:58.2]} 4... Qb6 {[%clk 0:02:59.7]} 5. Nc3 {[%clk 0:02:55.8]} 5...
Bd7 {[%clk 0:02:52.8]} 6. Rb1 {[%clk 0:02:49.6]} 6... e6 {[%clk 0:02:48.3]} 7.
Be2 {[%clk 0:02:43.7]} 7... Be7 {[%clk 0:02:40.2]} 8. O-O {[%clk 0:02:41]} 8...
O-O {[%clk 0:02:40.6]} 9. Ne5 {[%clk 0:02:36]} 9... Nc6 {[%clk 0:02:36.7]} 10.
Nxd7 {[%clk 0:02:27]} 10... Nxd7 {[%clk 0:02:36.3]} 11. dxc5 {[%clk 0:02:18.9]}
11... Nxc5 {[%clk 0:02:37.2]} 12. b4 {[%clk 0:02:07.8]} 12... Nd7 {[%clk
0:02:33.6]} 13. Na4 {[%clk 0:02:01.4]} 13... Qd8 {[%clk 0:02:28.5]} 14. a3
{[%clk 0:01:59.2]} 14... Rc8 {[%clk 0:02:26.2]} 15. Bg3 {[%clk 0:01:54]} 15...
Nce5 {[%clk 0:02:18.4]} 16. Nb2 {[%clk 0:01:43.8]} 16... Bf6 {[%clk 0:02:14.7]}
17. Rc1 {[%clk 0:01:34.2]} 17... Nb6 {[%clk 0:02:11.8]} 18. c3 {[%clk
0:01:29.5]} 18... Nec4 {[%clk 0:02:05]} 19. Nxc4 {[%clk 0:01:24.8]} 19... Nxc4
{[%clk 0:02:05.9]} 20. a4 {[%clk 0:01:01.3]} 20... Qd7 {[%clk 0:02:02.6]} 21. e4
{[%clk 0:00:47.6]} 21... Nb2 {[%clk 0:01:43.5]} 22. Qb3 {[%clk 0:00:21.3]} 22...
Nxa4 {[%clk 0:01:36.4]} 23. e5 {[%clk 0:00:17.3]} 23... Be7 {[%clk 0:01:22]} 24.
Rc2 {[%clk 0:00:16]} 24... b5 {[%clk 0:01:15.7]} 25. Ra1 {[%clk 0:00:14.9]}
25... a6 {[%clk 0:01:06]} 26. Rcc1 {[%clk 0:00:11.1]} 26... Rc7 {[%clk
0:01:01.4]} 27. f3 {[%clk 0:00:10.3]} 27... Rfc8 {[%clk 0:01:01.2]} 28. Be1
{[%clk 0:00:10.3]} 28... Bg5 {[%clk 0:00:37.6]} 29. Rc2 {[%clk 0:00:09.3]} 29...
Be3+ {[%clk 0:00:37.3]} 30. Kh1 {[%clk 0:00:06.9]} 30... Qe7 {[%clk 0:00:36.5]}
31. Bd3 {[%clk 0:00:06.2]} 31... Qg5 {[%clk 0:00:34.8]} 32. Bg3 {[%clk 0:00:05]}
32... Bf4 {[%clk 0:00:33.2]} 33. Bxf4 {[%clk 0:00:04.5]} 33... Qxf4 {[%clk
0:00:34.1]} 34. Rf1 {[%clk 0:00:04.2]} 34... Rxc3 {[%clk 0:00:33.6]} 35. Rxc3
{[%clk 0:00:04]} 35... Rxc3 {[%clk 0:00:34.5]} 36. Qb1 {[%clk 0:00:04.2]} 36...
Qxe5 {[%clk 0:00:32.8]} 37. Bxh7+ {[%clk 0:00:03.8]} 37... Kh8 {[%clk 0:00:33]}
38. Bc2 {[%clk 0:00:03.5]} 38... Ra3 {[%clk 0:00:24.5]} 39. Bxa4 {[%clk
0:00:02.6]} 39... Rxa4 {[%clk 0:00:23.9]} 40. Rc1 {[%clk 0:00:03.1]} 40... g6
{[%clk 0:00:21.6]} 41. Rc2 {[%clk 0:00:01.8]} 41... Ra1 {[%clk 0:00:21]} 0-1

[Event "*** Titled Tuesday Blitz"]
[Site "Chess.com"]
[Date "2020.04.28"]
[Round "9"]
[White "LiamPutnam2008"]
[Black "XiaoKangZhong"]
[Result "1-0"]
[WhiteElo "2538"]
[BlackElo "2360"]
[TimeControl "180+1"]
[EndTime "11:46:22 PDT"]
[Termination "LiamPutnam2008 won by resignation"]

1. e4 {[%clk 0:03:00.9]} 1... c6 {[%clk 0:02:59.9]} 2. d4 {[%clk 0:03:00.1]}
2... d5 {[%clk 0:03:00.3]} 3. Nc3 {[%clk 0:03:01]} 3... dxe4 {[%clk 0:03:00.4]}
4. Nxe4 {[%clk 0:03:01.9]} 4... Nf6 {[%clk 0:03:00.9]} 5. Nxf6+ {[%clk
0:02:59.9]} 5... exf6 {[%clk 0:03:01.8]} 6. c3 {[%clk 0:03:00.3]} 6... Bd6
{[%clk 0:02:58.5]} 7. Bd3 {[%clk 0:03:00.8]} 7... O-O {[%clk 0:02:59.4]} 8. Qc2
{[%clk 0:03:01]} 8... Re8+ {[%clk 0:03:00.1]} 9. Ne2 {[%clk 0:03:01.4]} 9... h5
{[%clk 0:03:00.8]} 10. Be3 {[%clk 0:03:01.7]} 10... Nd7 {[%clk 0:03:00]} 11.
O-O-O {[%clk 0:02:58.9]} 11... Nf8 {[%clk 0:02:55.6]} 12. h3 {[%clk 0:02:58.1]}
12... Qc7 {[%clk 0:02:53.7]} 13. g4 {[%clk 0:02:53]} 13... h4 {[%clk 0:02:53.5]}
14. g5 {[%clk 0:02:52.8]} 14... Qe7 {[%clk 0:02:27.1]} 15. Rdg1 {[%clk
0:02:46.1]} 15... f5 {[%clk 0:02:26.2]} 16. Bxf5 {[%clk 0:02:40.5]} 16... g6
{[%clk 0:02:23.6]} 17. Bxc8 {[%clk 0:02:36]} 17... Raxc8 {[%clk 0:02:23.1]} 18.
Rg4 {[%clk 0:02:36.3]} 18... Qe6 {[%clk 0:02:16.6]} 19. Kb1 {[%clk 0:02:27.5]}
19... c5 {[%clk 0:02:04.5]} 20. Rxh4 {[%clk 0:02:18.8]} 20... cxd4 {[%clk
0:02:03.8]} 21. Nxd4 {[%clk 0:02:06.9]} 21... Qd5 {[%clk 0:02:01.9]} 22. Rd1
{[%clk 0:02:05.1]} 22... Rcd8 {[%clk 0:01:56.4]} 23. Rg4 {[%clk 0:01:58.7]}
23... Bc5 {[%clk 0:01:45]} 24. h4 {[%clk 0:01:54.1]} 24... Ne6 {[%clk
0:01:25.4]} 25. a3 {[%clk 0:01:45.4]} 25... Nxd4 {[%clk 0:01:01.2]} 26. Bxd4
{[%clk 0:01:46.3]} 26... Qf3 {[%clk 0:01:01.1]} 27. Rg3 {[%clk 0:01:39]} 27...
Qh5 {[%clk 0:00:59.9]} 28. Rgd3 {[%clk 0:01:35.4]} 28... Re2 {[%clk 0:00:57.4]}
29. R1d2 {[%clk 0:01:30.5]} 29... Re1+ {[%clk 0:00:56.2]} 30. Ka2 {[%clk
0:01:30.3]} 30... Bf8 {[%clk 0:00:43.1]} 31. Bf6 {[%clk 0:01:21.5]} 31... Rxd3
{[%clk 0:00:41.8]} 32. Qxd3 {[%clk 0:01:22.4]} 32... Qxh4 {[%clk 0:00:39.3]} 33.
Qd8 {[%clk 0:01:20.1]} 33... Qc4+ {[%clk 0:00:35.3]} 34. b3 {[%clk 0:01:19.8]}
34... Qf1 {[%clk 0:00:35.3]} 35. c4 {[%clk 0:01:13.6]} 35... Re2 {[%clk
0:00:31.1]} 36. Qd3 {[%clk 0:00:58.6]} 36... Rxf2 {[%clk 0:00:19]} 37. Qxf1
{[%clk 0:00:50.8]} 37... Rxf1 {[%clk 0:00:19.9]} 38. Rd8 {[%clk 0:00:50]} 38...
Rf2+ {[%clk 0:00:19.5]} 39. Kb1 {[%clk 0:00:49.3]} 39... Re2 {[%clk 0:00:18.9]}
40. Kc1 {[%clk 0:00:46.7]} 40... Re6 {[%clk 0:00:17.5]} 41. Kc2 {[%clk
0:00:41.5]} 41... a6 {[%clk 0:00:16.6]} 42. b4 {[%clk 0:00:39.3]} 42... b6
{[%clk 0:00:16.5]} 43. Kc3 {[%clk 0:00:37.6]} 43... Re3+ {[%clk 0:00:16.2]} 44.
Kd4 {[%clk 0:00:33.6]} 44... Re6 {[%clk 0:00:17.1]} 45. c5 {[%clk 0:00:32.9]}
45... bxc5+ {[%clk 0:00:17.5]} 46. bxc5 {[%clk 0:00:33.8]} 46... Rc6 {[%clk
0:00:18.1]} 47. Be7 {[%clk 0:00:29.5]} 47... Kh7 {[%clk 0:00:17.7]} 48. Rxf8
{[%clk 0:00:26.8]} 48... Kg7 {[%clk 0:00:18]} 49. Rd8 {[%clk 0:00:26.9]} 49...
f5 {[%clk 0:00:16.3]} 50. gxf6+ {[%clk 0:00:26.4]} 50... Kf7 {[%clk 0:00:16.8]}
51. Kd5 {[%clk 0:00:27.1]} 51... Rxf6 {[%clk 0:00:15.6]} 52. Bxf6 {[%clk
0:00:26.7]} 52... Kxf6 {[%clk 0:00:15.4]} 53. c6 {[%clk 0:00:27.6]} 1-0

[Event "*** Titled Tuesday Blitz"]
[Site "Chess.com"]
[Date "2020.04.28"]
[Round "9"]
[White "monalize"]
[Black "RianKapriaga"]
[Result "1-0"]
[WhiteElo "2365"]
[BlackElo "2198"]
[TimeControl "180+1"]
[EndTime "11:46:23 PDT"]
[Termination "monalize won by checkmate"]

1. e4 {[%clk 0:03:00.9]} 1... e5 {[%clk 0:02:58.4]} 2. Nf3 {[%clk 0:03:00.1]}
2... Nc6 {[%clk 0:02:58.7]} 3. Bb5 {[%clk 0:02:58.9]} 3... a6 {[%clk 0:02:58.5]}
4. Bxc6 {[%clk 0:02:58.2]} 4... dxc6 {[%clk 0:02:58.3]} 5. O-O {[%clk
0:02:57.9]} 5... Bd6 {[%clk 0:02:57.8]} 6. d4 {[%clk 0:02:56.6]} 6... exd4
{[%clk 0:02:56.2]} 7. Qxd4 {[%clk 0:02:55.6]} 7... f6 {[%clk 0:02:54.2]} 8. Be3
{[%clk 0:02:54.3]} 8... Ne7 {[%clk 0:02:49.1]} 9. Nbd2 {[%clk 0:02:53.5]} 9...
Be6 {[%clk 0:02:47.7]} 10. Rad1 {[%clk 0:02:37.4]} 10... Ng6 {[%clk 0:02:46.6]}
11. Qc3 {[%clk 0:02:30.3]} 11... Qe7 {[%clk 0:02:35.2]} 12. a3 {[%clk
0:02:21.7]} 12... h5 {[%clk 0:02:32.3]} 13. Nc4 {[%clk 0:02:16.8]} 13... Rd8
{[%clk 0:02:13.1]} 14. Rfe1 {[%clk 0:02:06.4]} 14... Qf7 {[%clk 0:01:49.3]} 15.
e5 {[%clk 0:01:38.5]} 15... Bxc4 {[%clk 0:01:17.6]} 16. exd6 {[%clk 0:01:36.9]}
16... O-O {[%clk 0:01:17.1]} 17. dxc7 {[%clk 0:01:33.7]} 17... Rxd1 {[%clk
0:01:17]} 18. Rxd1 {[%clk 0:01:32.8]} 18... Bd5 {[%clk 0:01:17.2]} 19. Bb6
{[%clk 0:01:23.7]} 19... Nf4 {[%clk 0:01:04.4]} 20. Qe3 {[%clk 0:01:14.5]} 20...
Nxg2 {[%clk 0:00:40]} 21. Kxg2 {[%clk 0:01:09.9]} 21... Qg6+ {[%clk 0:00:39.3]}
22. Kf1 {[%clk 0:01:04.4]} 22... Re8 {[%clk 0:00:36.9]} 23. Rxd5 {[%clk
0:00:41.8]} 23... cxd5 {[%clk 0:00:31.2]} 24. c8=Q {[%clk 0:00:41]} 24... Rxc8
{[%clk 0:00:23]} 25. Qe6+ {[%clk 0:00:40.2]} 25... Kh7 {[%clk 0:00:20]} 26. Qxc8
{[%clk 0:00:41.1]} 26... Qe4 {[%clk 0:00:18]} 27. Qc3 {[%clk 0:00:38]} 27... g6
{[%clk 0:00:12.7]} 28. Bd4 {[%clk 0:00:34.5]} 28... Qg4 {[%clk 0:00:07.6]} 29.
Bxf6 {[%clk 0:00:27.3]} 29... Qh3+ {[%clk 0:00:06.8]} 30. Ke2 {[%clk 0:00:26.8]}
30... Kh6 {[%clk 0:00:06.3]} 31. Qe3+ {[%clk 0:00:24.5]} 31... Kh7 {[%clk
0:00:03]} 32. Qe7+ {[%clk 0:00:23.2]} 32... Kh6 {[%clk 0:00:02.9]} 33. Bg5#
{[%clk 0:00:22.4]} 1-0

[Event "*** Titled Tuesday Blitz"]
[Site "Chess.com"]
[Date "2020.04.28"]
[Round "9"]
[White "tomozupan"]
[Black "adriangschnitzer"]
[Result "0-1"]
[WhiteElo "2228"]
[BlackElo "2408"]
[TimeControl "180+1"]
[EndTime "11:46:26 PDT"]
[Termination "adriangschnitzer won on time"]

1. d4 {[%clk 0:03:00.9]} 1... Nf6 {[%clk 0:02:59.8]} 2. Bg5 {[%clk 0:02:59.7]}
2... Ne4 {[%clk 0:02:59.8]} 3. Bf4 {[%clk 0:02:59.6]} 3... c5 {[%clk 0:02:59.7]}
4. f3 {[%clk 0:02:59.4]} 4... Qa5+ {[%clk 0:02:59.1]} 5. c3 {[%clk 0:02:59.3]}
5... Nf6 {[%clk 0:02:59.2]} 6. d5 {[%clk 0:02:59.1]} 6... d6 {[%clk 0:02:57.2]}
7. e4 {[%clk 0:02:58.5]} 7... g6 {[%clk 0:02:57.5]} 8. Qd2 {[%clk 0:02:58]} 8...
Bg7 {[%clk 0:02:56.8]} 9. Na3 {[%clk 0:02:57.1]} 9... h5 {[%clk 0:02:53.9]} 10.
Nc4 {[%clk 0:02:43.1]} 10... Qc7 {[%clk 0:02:53.5]} 11. a4 {[%clk 0:02:42.8]}
11... Nbd7 {[%clk 0:02:53.5]} 12. Bd3 {[%clk 0:02:30.4]} 12... Ne5 {[%clk
0:02:52.6]} 13. Nxe5 {[%clk 0:02:20]} 13... dxe5 {[%clk 0:02:53.5]} 14. Be3
{[%clk 0:02:14.7]} 14... e6 {[%clk 0:02:48.2]} 15. d6 {[%clk 0:01:59.9]} 15...
Qa5 {[%clk 0:02:37.9]} 16. Ne2 {[%clk 0:01:08]} 16... Bd7 {[%clk 0:02:29.1]} 17.
O-O {[%clk 0:01:06.5]} 17... Bc6 {[%clk 0:02:21]} 18. b4 {[%clk 0:01:04.2]}
18... cxb4 {[%clk 0:02:19.3]} 19. cxb4 {[%clk 0:01:04.3]} 19... Qd8 {[%clk
0:02:19.2]} 20. Bb5 {[%clk 0:01:04.2]} 20... Bxb5 {[%clk 0:02:15.9]} 21. axb5
{[%clk 0:01:03.8]} 21... Qd7 {[%clk 0:02:05.3]} 22. Bxa7 {[%clk 0:00:56.7]}
22... Qxb5 {[%clk 0:02:03.7]} 23. Bc5 {[%clk 0:00:56.5]} 23... O-O {[%clk
0:01:54.7]} 24. Nc3 {[%clk 0:00:49.3]} 24... Qc6 {[%clk 0:01:46.7]} 25. Qd3
{[%clk 0:00:28]} 25... Rxa1 {[%clk 0:01:42.5]} 26. Rxa1 {[%clk 0:00:27.2]} 26...
Rd8 {[%clk 0:01:43.4]} 27. Qb5 {[%clk 0:00:19.3]} 27... Qc8 {[%clk 0:00:59.8]}
28. Ra7 {[%clk 0:00:17.9]} 28... Rd7 {[%clk 0:00:51.6]} 29. Qa4 {[%clk
0:00:17.8]} 29... Bf8 {[%clk 0:00:48.6]} 30. Ra8 {[%clk 0:00:15.2]} 30... Qc6
{[%clk 0:00:47.4]} 31. Qxc6 {[%clk 0:00:08.3]} 31... bxc6 {[%clk 0:00:48.3]} 32.
Na4 {[%clk 0:00:08.4]} 32... Kg7 {[%clk 0:00:39]} 33. Nb6 {[%clk 0:00:08.4]}
33... Rxd6 {[%clk 0:00:39]} 34. Bxd6 {[%clk 0:00:07.9]} 34... Bxd6 {[%clk
0:00:39.9]} 35. Rc8 {[%clk 0:00:05.7]} 35... Bxb4 {[%clk 0:00:37.5]} 36. Rxc6
{[%clk 0:00:05.9]} 36... h4 {[%clk 0:00:30.2]} 37. Kf1 {[%clk 0:00:06.1]} 37...
Nh5 {[%clk 0:00:29.5]} 38. Nc8 {[%clk 0:00:05.6]} 38... Nf4 {[%clk 0:00:25.3]}
39. Nd6 {[%clk 0:00:05.1]} 39... g5 {[%clk 0:00:21.9]} 40. Nc4 {[%clk
0:00:04.3]} 40... Kf6 {[%clk 0:00:17.9]} 0-1

[Event "*** Titled Tuesday Blitz"]
[Site "Chess.com"]
[Date "2020.04.28"]
[Round "9"]
[White "martinique24"]
[Black "IMUffeVinther-Schou"]
[Result "0-1"]
[WhiteElo "2406"]
[BlackElo "2278"]
[TimeControl "180+1"]
[EndTime "11:46:28 PDT"]
[Termination "IMUffeVinther-Schou won on time"]

1. e4 {[%clk 0:02:36.1]} 1... c5 {[%clk 0:03:00.9]} 2. Nf3 {[%clk 0:02:35.6]}
2... e6 {[%clk 0:03:00.7]} 3. d4 {[%clk 0:02:35.7]} 3... cxd4 {[%clk 0:03:00.8]}
4. Nxd4 {[%clk 0:02:33.7]} 4... a6 {[%clk 0:03:01.7]} 5. Nc3 {[%clk 0:02:32.1]}
5... b5 {[%clk 0:03:01.3]} 6. Bd3 {[%clk 0:02:30]} 6... Qb6 {[%clk 0:03:00.2]}
7. Be3 {[%clk 0:02:28.8]} 7... Bc5 {[%clk 0:02:59.5]} 8. Nce2 {[%clk 0:02:24.4]}
8... Bb7 {[%clk 0:02:38.8]} 9. c3 {[%clk 0:02:18.7]} 9... Nf6 {[%clk 0:02:37.7]}
10. b4 {[%clk 0:02:11.8]} 10... Bxd4 {[%clk 0:02:17.4]} 11. Bxd4 {[%clk
0:02:09.9]} 11... Qc7 {[%clk 0:02:17.5]} 12. Bxf6 {[%clk 0:02:08.1]} 12... gxf6
{[%clk 0:02:16.7]} 13. O-O {[%clk 0:02:07.6]} 13... Nc6 {[%clk 0:02:15.4]} 14.
a4 {[%clk 0:02:03.1]} 14... bxa4 {[%clk 0:02:11.3]} 15. Rxa4 {[%clk 0:01:59.6]}
15... O-O {[%clk 0:02:09.9]} 16. f4 {[%clk 0:01:36.3]} 16... Kh8 {[%clk
0:02:04.7]} 17. Nd4 {[%clk 0:01:32.2]} 17... Rg8 {[%clk 0:01:54.9]} 18. Qh5
{[%clk 0:01:26.1]} 18... Rg7 {[%clk 0:01:46.2]} 19. Ra2 {[%clk 0:01:16.6]} 19...
Nxd4 {[%clk 0:01:39.3]} 20. cxd4 {[%clk 0:01:15.3]} 20... Qc3 {[%clk 0:01:38.8]}
21. Bb1 {[%clk 0:00:49.2]} 21... Qxd4+ {[%clk 0:01:37.5]} 22. Kh1 {[%clk
0:00:48.9]} 22... Bxe4 {[%clk 0:01:30.1]} 23. Bxe4 {[%clk 0:00:43.2]} 23... Qxe4
{[%clk 0:01:29.3]} 24. f5 {[%clk 0:00:43]} 24... Rag8 {[%clk 0:01:24.8]} 25. Rg1
{[%clk 0:00:39.6]} 25... Qd5 {[%clk 0:01:08.9]} 26. Rf2 {[%clk 0:00:33.7]} 26...
e5 {[%clk 0:01:04.6]} 27. Qh3 {[%clk 0:00:28.7]} 27... Qd4 {[%clk 0:00:53.1]}
28. Rff1 {[%clk 0:00:24.1]} 28... d5 {[%clk 0:00:49.8]} 29. Rd1 {[%clk
0:00:22.4]} 29... Qc4 {[%clk 0:00:48.2]} 30. Ra1 {[%clk 0:00:16.6]} 30... d4
{[%clk 0:00:40.1]} 31. Ra5 {[%clk 0:00:15.6]} 31... d3 {[%clk 0:00:37.7]} 32.
Rc5 {[%clk 0:00:13.8]} 32... Qd4 {[%clk 0:00:33.9]} 33. Rcc1 {[%clk 0:00:08.8]}
33... d2 {[%clk 0:00:32.7]} 34. Rcd1 {[%clk 0:00:08.1]} 34... e4 {[%clk
0:00:32.3]} 35. Qh5 {[%clk 0:00:06]} 35... e3 {[%clk 0:00:30.4]} 36. Qe2 {[%clk
0:00:05.5]} 36... Qe4 {[%clk 0:00:26.9]} 37. b5 {[%clk 0:00:02.8]} 37... axb5
{[%clk 0:00:26.1]} 38. Rb1 {[%clk 0:00:01.1]} 38... Rxg2 {[%clk 0:00:20.3]} 39.
Rxg2 {[%clk 0:00:01]} 39... Qxb1+ {[%clk 0:00:19.7]} 0-1